Workbook

Sheet Stave Summary
H1: Stave Designer
B3: Parameters | E3: Measurements | J3: "+Kerf" | O3: 0
B4: Material Thickness | C4: 0.25 | E4: End #1 Stave Width | F4: =Calculations!C7-Glue*Number_of_Sides -> 1.491842755 | H4: Total Stave Width | I4: =F4*Number_of_Sides -> 23.86948409 | J4: =I4+Number_of_Sides*C10 -> 25.86948409
B5: Number of Sides | C5: 16 | E5: Stave edge Angle | F5: =Calculations!F28 -> 11.08150321 | H5: Tablesaw Angle | I5: =90-F5 -> 78.91849679
B6: ID End1 | C6: 7 | E6: End1 Circumfrence | F6: =ROUND(Calculations!C6,2) -> 24.02
B7: ID End2 | C7: 11 | E7: Stave Length | F7: =SQRT(POWER((Inside_diameter_1/2)-(Inside_diameter_2/2),2)+POWER(Unit_Height,2)) -> 11.67261753 | H7: Unit Slope | I7: =Calculations!$C$11-0.001 -> 9.865
B8: Unit Height | C8: 11.5
B9: Glue Thickness | C9: 0 | E9: End #2 Stave Width | F9: =IF(ISNUMBER(C7),Calculations!F7,0)-Glue*Number_of_Sides -> 2.287492225 | H9: Total Stave Width | I9: =F9*Number_of_Sides -> 36.5998756
B10: Saw Blade Kerf | C10: 0.125 | E10: End2 Circumfrence | F10: =IF(ISNUMBER(C7),ROUND(Calculations!F6,2)) -> 36.84
E11: Miter Guage Angle | F11: =Calculations!F26 -> 88.04796996
E14: Settings for Cut Jig
E15: Offset | F15: =Material_Thickness*TAN(RADIANS(Stave_edge_Angle)) -> 0.04896424127 | H15: Overage
E16: Cut #1 End #1 | F16: =F4-F15+F17+H16 -> 3.408581763 | H16: 0.0625
E17: End #2 | F17: =((F4-F9)/2)+F9-F15+H16 -> 1.903203249
H18: Stave blank size
E19: cut #2 End #2 | F19: =F9-F15 -> 2.238527984 | H19: =(ROUND(Stave_Length,2)&" X "&(ROUND(F4+H16,2))) -> 11.67 X 1.55
E20: End #1 | F20: =F4-F15 -> 1.442878514

Sheet Definitions
B57: end

Sheet Calculations
B2: Calculations Stave End 1 | E2: Calculations Stave End 2 | H2: End 1 Polygon Values-1 | K2: End1 Circle Values | N2: End 1 Polygon Values-2 | Q2: End1 Joint Values | T2: End 2 Polygon Values | W2: End2 Circle_Values | Z2: End2 Joint Values
H3: From Macro | K3: From Macro | N3: From Macro | Q3: From Macro | T3: From Macro | W3: From Macro | Z3: From Macro
B4: Outside Diameter | C4: =Inside_diameter_1+(2*Material_Thickness) -> 7.5 | E4: Outside Diameter | F4: =Inside_diameter_2+(2*Material_Thickness) -> 11.5 | H4: 3.823466843 | I4: 0 | K4: 3.5 | L4: 0 | N4: 3.568569054 | O4: 0 | Q4: 3.823466843 | R4: 0 | T4: 5.60775137 | U4: 0 | W4: 5.5 | X4: 0 | Z4: 5.60775137 | AA4: 0
B5: Outside Diameter + Apothem | C5: =C4/COS(RADIANS(180/Number_of_Sides)) -> 7.646933687 | E5: Outside Diameter + Apothem | F5: =F4/COS(RADIANS(180/Number_of_Sides)) -> 11.72529832 | H5: 3.53242276 | I5: 1.463177415 | K5: 3.423516603 | L5: 0.7276909179 | N5: 3.296927909 | O5: 1.365632254 | Q5: 3.568569054 | R5: 0 | T5: 5.180886714 | U5: 2.145993542 | W5: 5.379811804 | X5: 1.143514299 | Z5: 3.823466843 | AA5: 0
B6: Outside Circumfrence | C6: =PI()*C5 -> 24.02355069 | E6: Outside Circumfrence | F6: =PI()*F5 -> 36.83611106 | H6: 2.703599333 | I6: 2.703599333 | K6: 3.197409102 | L6: 1.423578251 | N6: 2.523359377 | O6: 2.523359377 | T6: 3.965279021 | U6: 3.965279021 | W6: 5.024500017 | X6: 2.237051537
B7: Side Width | C7: =SIN(RADIANS(360/Number_of_Sides))*((C5/2)/SIN(RADIANS((90-(360/Number_of_Sides)/2)))) -> 1.491842755 | E7: Side Width | F7: =SIN(RADIANS(360/'Stave Summary'!C5))*((F5/2)/SIN(RADIANS((90-(360/'Stave Summary'!C5)/2)))) -> 2.287492225 | H7: 1.463177415 | I7: 3.53242276 | K7: 2.83155948 | L7: 2.057248383 | N7: 1.365632254 | O7: 3.296927909 | Q7: 3.53242276 | R7: 1.463177415 | T7: 2.145993542 | U7: 5.180886714 | W7: 4.449593469 | X7: 3.232818888 | Z7: 5.180886714 | AA7: 2.145993542
B8: Inside Diameter + Apothem | C8: =Inside_diameter_1/COS(RADIANS(180/Number_of_Sides)) -> 7.137138107 | H8: 2.341198216e-16 | I8: 3.823466843 | K8: 2.341957122 | L8: 2.601006889 | N8: 2.185118335e-16 | O8: 3.568569054 | Q8: 3.296927909 | R8: 1.365632254 | T8: 3.433757383e-16 | U8: 5.60775137 | W8: 3.680218335 | X8: 4.08729654 | Z8: 3.53242276 | AA8: 1.463177415
E9: End2 Diameter+ Apothem | F9: =Inside_diameter_2/COS(RADIANS(180/Number_of_Sides)) -> 11.21550274 | H9: -1.463177415 | I9: 3.53242276 | K9: 1.75 | L9: 3.031088913 | N9: -1.365632254 | O9: 3.296927909 | T9: -2.145993542 | U9: 5.180886714 | W9: 2.75 | X9: 4.763139721
H10: -2.703599333 | I10: 2.703599333 | K10: 1.08155948 | L10: 3.328697807 | N10: -2.523359377 | O10: 2.523359377 | Q10: 2.703599333 | R10: 2.703599333 | T10: -3.965279021 | U10: 3.965279021 | W10: 1.699593469 | X10: 5.23081084 | Z10: 3.965279021 | AA10: 3.965279021
B11: Calculated Inverted Slope | C11: =IF(Inside_diameter_1=Inside_diameter_2,0.001,IF(Inside_diameter_1>Inside_diameter_2,ROUND(90-DEGREES(ATAN(Unit_Height/((Inside_diameter_1/2)-(Inside_diameter_2/2)))),3),ROUND(90-DEGREES(ATAN(Unit_Height/((Inside_diameter_2/2)-(Inside_diameter_1/2)))),3))) -> 9.866 | H11: -3.53242276 | I11: 1.463177415 | K11: 0.3658496214 | L11: 3.480826634 | N11: -3.296927909 | O11: 1.365632254 | Q11: 2.523359377 | R11: 2.523359377 | T11: -5.180886714 | U11: 2.145993542 | W11: 0.574906548 | X11: 5.469870425 | Z11: 2.703599333 | AA11: 2.703599333
H12: -3.823466843 | I12: 4.682396431e-16 | K12: -0.3658496214 | L12: 3.480826634 | N12: -3.568569054 | O12: 4.370236669e-16 | T12: -5.60775137 | U12: 6.867514766e-16 | W12: -0.574906548 | X12: 5.469870425
H13: -3.53242276 | I13: -1.463177415 | K13: -1.08155948 | L13: 3.328697807 | N13: -3.296927909 | O13: -1.365632254 | Q13: 1.463177415 | R13: 3.53242276 | T13: -5.180886714 | U13: -2.145993542 | W13: -1.699593469 | X13: 5.23081084 | Z13: 2.145993542 | AA13: 5.180886714
H14: -2.703599333 | I14: -2.703599333 | K14: -1.75 | L14: 3.031088913 | N14: -2.523359377 | O14: -2.523359377 | Q14: 1.365632254 | R14: 3.296927909 | T14: -3.965279021 | U14: -3.965279021 | W14: -2.75 | X14: 4.763139721 | Z14: 1.463177415 | AA14: 3.53242276
H15: -1.463177415 | I15: -3.53242276 | K15: -2.341957122 | L15: 2.601006889 | N15: -1.365632254 | O15: -3.296927909 | T15: -2.145993542 | U15: -5.180886714 | W15: -3.680218335 | X15: 4.08729654
H16: -7.023594647e-16 | I16: -3.823466843 | K16: -2.83155948 | L16: 2.057248383 | N16: -6.555355004e-16 | O16: -3.568569054 | Q16: 2.341198216e-16 | R16: 3.823466843 | T16: -1.030127215e-15 | U16: -5.60775137 | W16: -4.449593469 | X16: 3.232818888 | Z16: 3.433757383e-16 | AA16: 5.60775137
H17: 1.463177415 | I17: -3.53242276 | K17: -3.197409102 | L17: 1.423578251 | N17: 1.365632254 | O17: -3.296927909 | Q17: 2.185118335e-16 | R17: 3.568569054 | T17: 2.145993542 | U17: -5.180886714 | W17: -5.024500017 | X17: 2.237051537 | Z17: 2.341198216e-16 | AA17: 3.823466843
H18: 2.703599333 | I18: -2.703599333 | K18: -3.423516603 | L18: 0.7276909179 | N18: 2.523359377 | O18: -2.523359377 | T18: 3.965279021 | U18: -3.965279021 | W18: -5.379811804 | X18: 1.143514299
H19: 3.53242276 | I19: -1.463177415 | K19: -3.5 | L19: 4.286263797e-16 | N19: 3.296927909 | O19: -1.365632254 | Q19: -1.463177415 | R19: 3.53242276 | T19: 5.180886714 | U19: -2.145993542 | W19: -5.5 | X19: 6.735557395e-16 | Z19: -2.145993542 | AA19: 5.180886714
H20: 3.823466843 | I20: -9.364792863e-16 | K20: -3.423516603 | L20: -0.7276909179 | N20: 3.568569054 | O20: -8.740473338e-16 | Q20: -1.365632254 | R20: 3.296927909 | T20: 5.60775137 | U20: -1.373502953e-15 | W20: -5.379811804 | X20: -1.143514299 | Z20: -1.463177415 | AA20: 3.53242276
K21: -3.197409102 | L21: -1.423578251 | W21: -5.024500017 | X21: -2.237051537
E22: Miter Calculations | K22: -2.83155948 | L22: -2.057248383 | Q22: -2.703599333 | R22: 2.703599333 | W22: -4.449593469 | X22: -3.232818888 | Z22: -3.965279021 | AA22: 3.965279021
K23: -2.341957122 | L23: -2.601006889 | Q23: -2.523359377 | R23: 2.523359377 | W23: -3.680218335 | X23: -4.08729654 | Z23: -2.703599333 | AA23: 2.703599333
E24: Slope Angle | F24: =90-C11 -> 80.134 | K24: -1.75 | L24: -3.031088913 | W24: -2.75 | X24: -4.763139721
E25: SlopeTangent | F25: =1/(COS(RADIANS(F24))*TAN(RADIANS(360/(2*Number_of_Sides)))) -> 29.34053708 | K25: -1.08155948 | L25: -3.328697807 | Q25: -3.53242276 | R25: 1.463177415 | W25: -1.699593469 | X25: -5.23081084 | Z25: -5.180886714 | AA25: 2.145993542
E26: Slope Angle | F26: =DEGREES(ATAN(F25)) -> 88.04796996 | K26: -0.3658496214 | L26: -3.480826634 | Q26: -3.296927909 | R26: 1.365632254 | W26: -0.574906548 | X26: -5.469870425 | Z26: -3.53242276 | AA26: 1.463177415
E27: Saw Blade Tangent | F27: =COS(RADIANS(F26))*TAN(RADIANS(F24)) -> 0.1958569651 | K27: 0.3658496214 | L27: -3.480826634 | W27: 0.574906548 | X27: -5.469870425
E28: Saw Blade Angle | F28: =DEGREES(ATAN(F27)) -> 11.08150321 | K28: 1.08155948 | L28: -3.328697807 | Q28: -3.823466843 | R28: 4.682396431e-16 | W28: 1.699593469 | X28: -5.23081084 | Z28: -5.60775137 | AA28: 6.867514766e-16
K29: 1.75 | L29: -3.031088913 | Q29: -3.568569054 | R29: 4.370236669e-16 | W29: 2.75 | X29: -4.763139721 | Z29: -3.823466843 | AA29: 4.682396431e-16
K30: 2.341957122 | L30: -2.601006889 | W30: 3.680218335 | X30: -4.08729654
K31: 2.83155948 | L31: -2.057248383 | Q31: -3.53242276 | R31: -1.463177415 | W31: 4.449593469 | X31: -3.232818888 | Z31: -5.180886714 | AA31: -2.145993542
K32: 3.197409102 | L32: -1.423578251 | Q32: -3.296927909 | R32: -1.365632254 | W32: 5.024500017 | X32: -2.237051537 | Z32: -3.53242276 | AA32: -1.463177415
K33: 3.423516603 | L33: -0.7276909179 | W33: 5.379811804 | X33: -1.143514299
K34: 3.5 | L34: -8.572527594e-16 | Q34: -2.703599333 | R34: -2.703599333 | W34: 5.5 | X34: -1.347111479e-15 | Z34: -3.965279021 | AA34: -3.965279021
Q35: -2.523359377 | R35: -2.523359377 | Z35: -2.703599333 | AA35: -2.703599333
Q37: -1.463177415 | R37: -3.53242276 | Z37: -2.145993542 | AA37: -5.180886714
Q38: -1.365632254 | R38: -3.296927909 | Z38: -1.463177415 | AA38: -3.53242276
Q40: -7.023594647e-16 | R40: -3.823466843 | Z40: -1.030127215e-15 | AA40: -5.60775137
Q41: -6.555355004e-16 | R41: -3.568569054 | Z41: -7.023594647e-16 | AA41: -3.823466843
Q43: 1.463177415 | R43: -3.53242276 | Z43: 2.145993542 | AA43: -5.180886714
Q44: 1.365632254 | R44: -3.296927909 | Z44: 1.463177415 | AA44: -3.53242276
Q46: 2.703599333 | R46: -2.703599333 | Z46: 3.965279021 | AA46: -3.965279021
Q47: 2.523359377 | R47: -2.523359377 | Z47: 2.703599333 | AA47: -2.703599333
Q49: 3.53242276 | R49: -1.463177415 | Z49: 5.180886714 | AA49: -2.145993542
Q50: 3.296927909 | R50: -1.365632254 | Z50: 3.53242276 | AA50: -1.463177415
Q52: 3.823466843 | R52: -9.364792863e-16 | Z52: 5.60775137 | AA52: -1.373502953e-15
Q53: 3.568569054 | R53: -8.740473338e-16 | Z53: 3.823466843 | AA53: -9.364792863e-16
